bitfinex-derivatives/quotes_BNBF0:USTF0_20250529
["timestamp","ask_amount","ask_price","bid_price","bid_amount"]
[1748527942402,0.2548965,684.21,680.73,0.46590585]
[1748527943402,0.2548965,684.21,680.62,0.374]
[1748527943403,0.2548965,684.21,680.72,0.46590585]
[1748527943600,0.2548965,684.21,680.62,0.374]
[1748527943601,0.2548965,684.21,680.73,0.46590585]
[1748527943801,0.2548965,684.21,680.71,0.46590585]
[1748527945198,0.2548965,684.21,680.75,0.46590585]
[1748527946401,0.2548965,684.21,680.62,0.374]
[1748527946402,0.2548965,684.21,680.74,0.46590585]
[1748527947100,0.2548965,684.21,680.73,0.46590585]
[1748527947297,0.2548965,684.21,680.7,0.46590585]
[1748527947602,0.2548965,684.21,680.72,0.46590585]
[1748527948199,0.2548965,684.21,680.71,0.46590585]
[1748527948403,0.2548965,684.21,680.62,0.374]
[1748527948404,0.2548965,684.21,680.75,0.46590585]
[1748527948597,0.2548965,684.21,680.74,0.46590585]
[1748527948802,0.2548965,684.21,680.62,0.374]
[1748527949598,0.2548965,684.21,680.64,0.46590585]
[1748527950099,0.2548965,684.21,680.62,0.374]
[1748527950100,0.2548965,684.21,680.63,0.46590585]
[1748527950401,0.2548965,684.21,680.62,0.83990585]
[1748527950599,0.2548965,684.21,680.62,0.374]
[1748527951603,0.2548965,684.21,680.6,0.46590585]
[1748527952203,0.2548965,684.21,680.61,0.46590585]
[1748527952400,0.2548965,684.21,680.63,0.46590585]
[1748527952799,0.2548965,684.21,680.34,0.46590585]
[1748527953004,0.2548965,684.21,680.36,0.46590585]
[1748527953303,0.2548965,684.21,680.35,0.46590585]
[1748527953505,0.2548965,684.21,680.36,0.46590585]
[1748527953702,0.2548965,684.21,680.39,0.46590585]
[1748527954806,0.2548965,684.21,680.47,0.46590585]
[1748527955007,0.2548965,684.21,680.57,0.29387131]
[1748527955207,0.29238483,684.03,680.57,0.29387131]
[1748527956105,0.29238483,684.03,680.61,0.46590585]
[1748527956302,0.29238483,684.03,680.63,0.2938454]
[1748527956501,0.29238483,684.03,680.63,0.75975125]
[1748527957114,0.29238483,684.03,680.8,0.46590585]
[1748527957306,0.29238483,684.03,680.94,0.46590585]
[1748527957513,0.29238483,684.03,680.95,0.75961317]
[1748527957723,0.29238483,684.03,680.96,0.293703]
[1748527970629,0.29238483,684.03,680.99,0.46590585]
[1748527970830,0.29238483,684.03,681.0,0.29368575]
[1748527971232,0.29238483,684.03,681.21,0.46590585]
[1748527972134,0.29238483,684.03,681.0,0.29368575]
[1748527972135,0.29238483,684.03,681.07,0.46590585]
[1748527972435,0.29238483,684.03,681.08,0.29365125]
[1748527972629,0.29238483,684.03,681.08,0.7595571]
[1748527973133,0.29238483,684.03,681.08,0.29365125]
[1748527993439,0.29238483,684.03,681.09,0.405]
[1748528035397,0.29238483,684.03,680.21,0.2552536]
[1748528037093,0.29238483,684.03,680.22,0.387]
[1748528037697,0.29238483,684.03,680.24,0.29401387]
[1748528040595,0.29238483,684.03,680.82,0.46384539]
[1748528041201,0.29238483,684.03,680.84,0.46384539]
[1748528041398,0.29238483,684.03,680.86,0.46384539]
[1748528041901,0.29238483,684.03,680.88,0.46384539]
[1748528042202,0.29238483,684.03,680.85,0.46384539]
[1748528042999,0.29238483,684.03,680.86,0.29374614]
[1748528043201,0.29238483,684.03,680.9,0.46384539]
[1748528043403,0.29238483,684.03,680.92,0.46384539]
[1748528043604,0.29238483,684.03,680.93,0.29371594]
[1748528045201,0.25506652,683.26,680.93,0.29371594]
[1748528045405,0.29276147,683.15,680.93,0.29371594]
[1748528065522,0.29276147,683.15,680.94,0.45]
[1748528065920,0.29276147,683.15,680.94,0.91108345]
[1748528066122,0.29276147,683.15,680.95,0.46108345]
[1748528066324,0.29276147,683.15,681.1,0.46108345]
[1748528066521,0.29276147,683.15,681.09,0.46108345]
[1748528066821,0.29276147,683.15,681.1,0.46108345]
[1748528068124,0.29276147,683.15,680.98,0.46108345]
[1748528068427,0.29276147,683.15,681.03,0.46108345]
[1748528068626,0.29276147,683.15,681.05,0.46108345]
[1748528068826,0.29276147,683.15,680.94,0.45]
[1748528068827,0.29276147,683.15,681.06,0.46108345]
[1748528070129,0.29276147,683.15,681.07,0.46108345]
[1748528070430,0.29276147,683.15,681.06,0.46108345]
[1748528070930,0.29276147,683.15,681.07,0.46108345]
[1748528071631,0.29276147,683.15,681.08,0.46108345]
[1748528071830,0.29276147,683.15,681.03,0.46108345]
[1748528072427,0.29276147,683.15,681.04,0.46108345]
[1748528072626,0.29276147,683.15,681.03,0.46108345]
[1748528072832,0.29276147,683.15,681.04,0.46108345]
[1748528073130,0.29276147,683.15,681.05,0.75474764]
[1748528073429,0.29276147,683.15,681.06,0.29365988]
[1748528073628,0.29276147,683.15,681.06,0.75474333]
[1748528074331,0.29276147,683.15,681.06,0.29365988]
[1748528079029,0.29276147,683.15,681.15,0.46108345]
[1748528079233,0.29276147,683.15,681.06,0.29365988]
[1748528079234,0.29276147,683.15,681.13,0.46108345]
[1748528079433,0.29276147,683.15,681.14,0.46108345]
[1748528079630,0.29276147,683.15,681.09,0.46108345]
[1748528086533,0.29276147,683.15,681.1,0.29364263]
[1748528091237,0.29276147,683.15,681.09,0.46108345]
[1748528091435,0.25506652,683.26,681.09,0.46108345]
[1748528098641,0.25506652,683.26,681.1,0.431]
[1748528099538,0.25506652,683.26,681.16,0.46477652]
[1748528099737,0.25506652,683.26,681.17,0.46477652]
[1748528101742,0.25506652,683.26,681.18,0.46477652]
[1748528101938,0.93388068,686.01,681.18,0.46477652]
[1748528102137,0.93388068,686.01,681.41,0.46477652]
[1748528102138,0.94188129,685.8,681.41,0.46477652]
[1748528102345,0.94188129,685.8,681.1,0.431]
[1748528102346,0.25482744,682.85,681.45,0.46477652]
[1748528102638,0.94188129,685.77,681.43,0.46477652]
[1748528103443,0.93388068,686.01,681.21,0.46477652]
[1748528103938,0.2548629,684.69,681.21,0.46477652]
[1748528104138,0.93388068,686.01,681.21,0.46477652]
[1748528104339,0.25484984,684.82,681.1,0.431]
[1748528107145,0.25484984,684.82,681.11,0.46477652]
[1748528107942,0.25484984,684.82,681.1,0.431]
[1748528107943,0.25484984,684.82,681.1,0.89577652]
[1748528108142,0.25484984,684.82,681.1,0.431]
[1748528121949,0.29212432,684.64,681.1,0.431]
[1748528122753,0.29212432,684.64,681.09,0.46108345]
[1748528124653,0.29212432,684.64,681.1,0.484]
[1748528168586,0.29212432,684.64,681.09,0.46108345]
[1748528171396,0.29212432,684.64,681.1,0.471]
[1748528181794,0.25501138,683.76,681.1,0.471]
[1748528181996,0.29255591,683.63,681.1,0.471]
[1748528203312,0.29255591,683.63,681.09,0.46108345]
[1748528205718,0.29255591,683.63,681.1,0.435]
[1748528232446,0.25501138,683.76,681.1,0.435]
[1748528237646,0.25501138,683.76,681.09,0.46108345]
[1748528239552,0.25501138,683.76,681.1,0.444]
[1748528257162,0.29255591,683.63,681.1,0.444]
[1748528269477,0.29255591,683.63,679.88,0.44]
[1748528269879,0.29255591,683.63,679.89,0.29416523]
[1748528316821,0.29255591,683.63,679.9,0.429]
[1748528317019,0.29255591,683.63,679.91,0.29415657]
[1748528348757,0.25547378,682.71,679.91,0.29415657]
[1748528348956,0.29301024,682.57,679.91,0.29415657]
[1748528352056,0.29301024,682.57,679.93,0.46656051]
[1748528352260,0.29301024,682.57,679.92,0.46656051]
[1748528352661,0.29301024,682.57,679.91,0.29415657]
[1748528352856,0.29301024,682.57,679.91,0.76071708]
[1748528353363,0.29301024,682.57,679.91,0.29415657]
[1748528367176,0.29301024,682.57,679.97,0.46656051]
[1748528367773,0.29301024,682.57,679.91,0.29415657]
[1748528373082,0.29301024,682.57,679.94,0.46656051]
[1748528373477,0.29301024,682.57,679.95,0.46656051]
[1748528374175,0.29301024,682.57,679.96,0.46656051]
[1748528374379,0.29301024,682.57,679.98,0.46656051]
[1748528376183,0.29301024,682.57,679.97,0.46656051]
[1748528376380,0.29301024,682.57,679.96,0.46656051]
[1748528377184,0.29301024,682.57,679.91,0.29415657]
[1748528390199,0.29301024,682.57,679.92,0.385]
[1748528392597,0.29301024,682.57,679.93,0.29414792]
[1748528399803,0.29301024,682.57,679.99,0.46656051]
[1748528400301,0.29301024,682.57,679.98,0.46656051]
[1748528400498,0.29301024,682.57,680.1,0.46656051]
[1748528400702,0.29301024,682.57,680.05,0.46656051]
[1748528401202,0.29301024,682.57,680.06,0.46656051]
[1748528401402,0.29301024,682.57,680.03,0.46656051]
[1748528401799,0.29301024,682.57,680.05,0.46656051]
[1748528402103,0.29301024,682.57,680.03,0.46656051]
[1748528402604,0.25553757,681.95,679.93,0.29414792]
[1748528402901,0.29331964,681.85,679.93,0.29414792]
[1748528408210,0.29331964,681.85,679.92,0.385]
[1748528409412,0.29331964,681.85,679.67,0.46656051]
[1748528411011,0.29331964,681.85,679.68,0.399]
[1748528416918,0.25553757,681.95,679.68,0.399]
[1748528440339,0.29332394,681.84,679.68,0.399]
[1748528450035,0.29332394,681.84,677.54,0.46656051]
[1748528450235,0.29332394,681.84,677.67,0.29512889]
[1748528451842,0.29332394,681.84,677.68,0.36]
[1748528452035,0.29332394,681.84,677.78,0.29508099]
[1748528457343,0.29332394,681.84,677.82,0.459225]
[1748528457540,0.29332394,681.84,677.89,0.459225]
[1748528457751,0.29332394,681.84,677.91,0.29502441]
[1748528460253,0.29332394,681.84,677.95,0.459225]
[1748528460554,0.29332394,681.84,678.05,0.29496349]
[1748528461651,0.29332394,681.84,678.19,0.25608195]
[1748528461851,0.29332394,681.84,678.21,0.29489391]
[1748528477656,0.29332394,681.84,678.58,0.459225]
[1748528477855,0.29332394,681.84,678.6,0.29472443]
[1748528486971,0.29332394,681.84,678.61,0.391]
[1748528487468,0.29332394,681.84,678.62,0.29471574]
[1748528493079,0.29332394,681.84,678.93,0.459225]
[1748528493276,0.29332394,681.84,678.88,0.459225]
[1748528493484,0.29332394,681.84,678.84,0.459225]
[1748528493682,0.29332394,681.84,678.89,0.459225]
[1748528493881,0.29332394,681.84,678.78,0.459225]
[1748528494082,0.29332394,681.84,678.77,0.459225]
[1748528495086,0.29332394,681.84,678.62,0.29471574]
[1748528495376,0.29332394,681.84,678.76,0.459225]
[1748528495585,0.29332394,681.84,678.8,0.459225]
[1748528495881,0.29332394,681.84,678.77,0.459225]
[1748528496183,0.29332394,681.84,678.78,0.459225]
[1748528496382,0.29332394,681.84,678.62,0.29471574]
[1748528496383,0.29332394,681.84,678.71,0.459225]
[1748528496577,0.29332394,681.84,678.75,0.459225]
[1748528496782,0.29332394,681.84,678.62,0.29471574]
[1748528496783,0.29332394,681.84,678.76,0.459225]
[1748528497082,0.29332394,681.84,678.71,0.459225]
[1748528497282,0.29332394,681.84,678.73,0.459225]
[1748528497476,0.29332394,681.84,678.77,0.459225]
[1748528502682,0.29332394,681.84,678.76,0.459225]
[1748528503281,0.29332394,681.84,678.77,0.459225]
[1748528503580,0.29332394,681.84,678.65,0.459225]
[1748528503784,0.29332394,681.84,678.63,0.459225]
[1748528504184,0.29332394,681.84,678.62,0.29471574]
[1748528504785,0.29332394,681.84,678.75,0.459225]
[1748528505086,0.29332394,681.84,678.69,0.459225]
[1748528505282,0.29332394,681.84,678.7,0.459225]
[1748528505883,0.29332394,681.84,678.69,0.459225]
[1748528506083,0.29332394,681.84,678.63,0.459225]
[1748528506286,0.29332394,681.84,678.66,0.459225]
[1748528506483,0.29332394,681.84,678.65,0.459225]
[1748528506687,0.29332394,681.84,678.68,0.459225]
[1748528507280,0.29332394,681.84,678.67,0.459225]
[1748528508789,0.29332394,681.84,678.68,0.459225]
[1748528509389,0.29332394,681.84,678.63,0.459225]
[1748528510289,0.29332394,681.84,678.71,0.459225]
[1748528510793,0.29332394,681.84,678.62,0.29471574]
[1748528510990,0.29332394,681.84,678.87,0.459225]
[1748528511200,0.29332394,681.84,678.93,0.459225]
[1748528511407,0.29332394,681.84,678.96,0.459225]
[1748528511590,0.29332394,681.84,678.62,0.29471574]
[1748528511591,0.29332394,681.84,678.97,0.459225]
[1748528511895,0.29332394,681.84,678.98,0.459225]
[1748528512302,0.29332394,681.84,678.99,0.459225]
[1748528512499,0.29332394,681.84,678.98,0.459225]
[1748528512694,0.29332394,681.84,679.01,0.459225]
[1748528517803,0.29332394,681.84,678.97,0.459225]
[1748528518298,0.29332394,681.84,678.95,0.459225]
[1748528519098,0.29332394,681.84,678.62,0.29471574]
[1748528521702,0.29332394,681.84,678.82,0.459225]
[1748528521902,0.29332394,681.84,678.81,0.459225]
[1748528522097,0.29332394,681.84,678.82,0.459225]
[1748528522303,0.29332394,681.84,678.84,0.459225]
[1748528522495,0.29332394,681.84,678.82,0.459225]
[1748528523904,0.29332394,681.84,678.83,0.459225]
[1748528524199,0.29332394,681.84,678.82,0.459225]
[1748528524403,0.29332394,681.84,678.81,0.459225]
[1748528524899,0.29332394,681.84,678.62,0.29471574]
[1748528524900,0.29332394,681.84,678.85,0.459225]
[1748528525104,0.29332394,681.84,678.84,0.459225]
[1748528525404,0.29332394,681.84,678.85,0.459225]
[1748528525604,0.29332394,681.84,678.84,0.459225]
[1748528526402,0.29332394,681.84,678.69,0.459225]
[1748528526603,0.29332394,681.84,678.76,0.459225]
[1748528527208,0.29332394,681.84,678.75,0.459225]
[1748528527603,0.29332394,681.84,678.62,0.29471574]
[1748528527604,0.29332394,681.84,678.76,0.459225]
[1748528527807,0.29332394,681.84,678.75,0.459225]
[1748528528307,0.29332394,681.84,678.72,0.459225]
[1748528528507,0.29332394,681.84,678.71,0.459225]
[1748528528904,0.29332394,681.84,678.92,0.459225]
[1748528529104,0.29332394,681.84,678.91,0.459225]
[1748528529307,0.29332394,681.84,678.62,0.29471574]
[1748528529308,0.29332394,681.84,678.8,0.459225]
[1748528530009,0.29332394,681.84,678.84,0.459225]
[1748528530505,0.29332394,681.84,678.93,0.459225]
[1748528532009,0.29332394,681.84,678.94,0.464]
[1748528532615,0.29332394,681.84,679.02,0.459225]
[1748528532808,0.29332394,681.84,678.99,0.459225]
[1748528533010,0.29332394,681.84,678.98,0.459225]
[1748528533208,0.29332394,681.84,678.97,0.459225]
[1748528533514,0.29332394,681.84,678.96,0.459225]
[1748528533716,0.25553757,681.95,678.97,0.459225]
[1748528534313,0.25553757,681.95,678.98,0.459225]
[1748528535318,0.25553757,681.95,678.95,0.459225]
[1748528536414,0.25553757,681.95,678.94,0.464]
[1748528551129,0.25553757,681.95,678.39,0.459225]
[1748528551330,0.25553757,681.95,678.37,0.459225]
[1748528551723,0.25553757,681.95,678.19,0.71530695]
[1748528551927,0.25553757,681.95,678.19,0.25608195]
[1748528552129,0.25553757,681.95,678.48,0.459225]
[1748528552327,0.25553757,681.95,678.59,0.459225]
[1748528552525,0.25553757,681.95,678.19,0.25608195]
[1748528552526,0.25553757,681.95,678.55,0.459225]
[1748528553623,0.25553757,681.95,678.54,0.459225]
[1748528553824,0.25553757,681.95,678.56,0.381]
[1748528555731,0.25553757,681.95,678.57,0.459225]
[1748528556027,0.25553757,681.95,678.59,0.459225]
[1748528556237,0.25553757,681.95,678.6,0.459225]
[1748528556436,0.25553757,681.95,678.61,0.459225]
[1748528557433,0.25553757,681.95,678.62,0.459225]
[1748528558031,0.25553757,681.95,678.61,0.459225]
[1748528558232,0.25553757,681.95,678.56,0.381]
[1748528558233,0.25553757,681.95,678.59,0.459225]
[1748528558434,0.25553757,681.95,678.56,0.381]
[1748528558435,0.25553757,681.95,678.6,0.459225]
[1748528558634,0.25553757,681.95,678.56,0.840225]
[1748528559431,0.25553757,681.95,678.58,0.459225]
[1748528559728,0.29334545,681.79,678.57,0.459225]
[1748528559932,0.29334545,681.79,678.56,0.840225]
[1748528560131,0.29334545,681.79,678.57,0.459225]
[1748528560528,0.29334545,681.79,678.57,0.75396246]
[1748528560733,0.29334545,681.79,678.57,0.29473746]
[1748528560934,0.29334545,681.79,678.57,0.75396246]
[1748528561133,0.29334545,681.79,678.57,0.29473746]
[1748528561334,0.29334545,681.79,678.57,0.75396246]
[1748528561537,0.29334545,681.79,678.58,0.459225]
[1748528562235,0.29334545,681.79,678.6,0.459225]
[1748528562435,0.29334545,681.79,678.61,0.459225]
[1748528562633,0.29334545,681.79,678.62,0.459225]
[1748528563129,0.29334545,681.79,678.61,0.459225]
[1748528563430,0.29334545,681.79,678.59,0.459225]
[1748528564445,0.29334545,681.79,678.62,0.459225]
[1748528565334,0.29334545,681.79,678.63,0.459225]
[1748528565633,0.29334545,681.79,678.57,0.29473746]
[1748528565634,0.29334545,681.79,678.59,0.459225]
[1748528565831,0.29334545,681.79,678.6,0.459225]
[1748528566030,0.29334545,681.79,678.63,0.459225]
[1748528566432,0.29334545,681.79,678.73,0.459225]
[1748528567137,0.29334545,681.79,678.57,0.29473746]
[1748528568339,0.29334545,681.79,678.57,0.75396246]
[1748528568734,0.29334545,681.79,678.58,0.459225]
[1748528568934,0.29334545,681.79,678.57,0.75396246]
[1748528569838,0.29334545,681.79,678.62,0.459225]
[1748528570536,0.29334545,681.79,678.65,0.459225]
[1748528570736,0.29334545,681.79,678.66,0.459225]
[1748528571540,0.29334545,681.79,678.7,0.459225]
[1748528572641,0.29334545,681.79,678.68,0.459225]
[1748528574338,0.29334545,681.79,678.62,0.459225]
[1748528575539,0.29334545,681.79,678.6,0.459225]
[1748528575840,0.29334545,681.79,678.63,0.459225]
[1748528576140,0.29334545,681.79,678.76,0.459225]
[1748528577237,0.29334545,681.79,678.78,0.459225]
[1748528580841,0.29334545,681.79,678.79,0.459225]
[1748528581543,0.29334545,681.79,678.8,0.459225]
[1748528582138,0.29334545,681.79,678.76,0.459225]
[1748528582438,0.29334545,681.79,678.78,0.459225]
[1748528583237,0.29334545,681.79,678.74,0.459225]
[1748528583437,0.29334545,681.79,678.83,0.459225]
[1748528583639,0.29334545,681.79,678.79,0.459225]
[1748528584243,0.29334545,681.79,678.76,0.459225]
[1748528584543,0.29334545,681.79,678.79,0.459225]
[1748528585543,0.29334545,681.79,678.78,0.459225]
[1748528595550,0.29334545,681.79,678.64,0.459225]
[1748528595951,0.29334545,681.79,678.73,0.459225]
[1748528596351,0.29334545,681.79,678.61,0.459225]
[1748528597148,0.29334545,681.79,678.63,0.459225]
[1748528597352,0.29334545,681.79,678.62,0.459225]
[1748528597766,0.29334545,681.79,678.61,0.459225]
[1748528598256,0.29334545,681.79,678.62,0.459225]
[1748528599750,0.29334545,681.79,678.63,0.435]
[1748528601753,0.29334545,681.79,678.66,0.459225]
[1748528602051,0.29334545,681.79,678.67,0.459225]
[1748528602252,0.29334545,681.79,678.68,0.459225]
[1748528602452,0.29334545,681.79,678.7,0.459225]
[1748528602957,0.25592846,681.02,678.7,0.459225]
[1748528603157,0.29372457,680.91,678.7,0.459225]
[1748528603353,0.29372457,680.91,678.63,0.435]
[1748528603354,0.29372457,680.91,678.73,0.459225]
[1748528603760,0.29372457,680.91,678.7,0.459225]
[1748528604054,0.29372457,680.91,678.79,0.459225]
[1748528604253,0.29372457,680.91,678.86,0.459225]
[1748528604656,0.29372457,680.91,678.83,0.459225]
[1748528604856,0.29372457,680.91,678.84,0.459225]
[1748528605355,0.29372457,680.91,678.78,0.459225]
[1748528605955,0.29372457,680.91,678.79,0.75386693]
[1748528606161,0.29372457,680.91,678.81,0.29463325]
[1748528613566,0.29372457,680.91,678.82,0.367]
[1748528613771,0.29372457,680.91,678.83,0.29462457]
[1748528618869,0.29372457,680.91,678.9,0.459225]
[1748528619074,0.29372457,680.91,678.91,0.29458985]
[1748528634090,0.29372457,680.91,678.92,0.459225]
[1748528634389,0.29372457,680.91,678.93,0.75380617]
[1748528634586,0.29372457,680.91,678.94,0.29457684]
[1748528635189,0.29372457,680.91,678.97,0.459225]
[1748528635389,0.29372457,680.91,678.98,0.29455948]
[1748528635586,0.29372457,680.91,679.01,0.459225]
[1748528635786,0.29372457,680.91,679.02,0.75376713]
[1748528635986,0.29372457,680.91,678.52,0.459225]
[1748528635987,0.29372457,680.91,679.04,0.459225]
[1748528636287,0.29372457,680.91,679.08,0.459225]
[1748528636488,0.29372457,680.91,679.04,0.29453345]
[1748528637996,0.29372457,680.91,679.05,0.498]
[1748528638293,0.29372457,680.91,679.06,0.29452478]
[1748528649405,0.29372457,680.91,679.05,0.498]
[1748528679029,0.29372457,680.91,678.68,0.459225]
[1748528679229,0.29372457,680.91,678.64,0.459225]
[1748528679428,0.29372457,680.91,678.11,0.459225]
[1748528679429,0.25592846,681.02,678.65,0.459225]
[1748528681733,0.25592846,681.02,678.66,0.5]
[1748528685034,0.25592846,681.02,679.08,0.459225]
[1748528685233,0.25592846,681.02,678.98,0.459225]
[1748528685936,0.25592846,681.02,679.0,0.459225]
[1748528687034,0.25592846,681.02,678.98,0.459225]
[1748528687730,0.25592846,681.02,678.66,0.5]
[1748528687731,0.25592846,681.02,679.0,0.459225]
[1748528688631,0.25592846,681.02,678.93,0.459225]
[1748528689234,0.25592846,681.02,678.66,0.5]
[1748528689235,0.25592846,681.02,679.04,0.459225]
[1748528689537,0.25592846,681.02,679.07,0.459225]
[1748528689735,0.25592846,681.02,679.09,0.459225]
[1748528689934,0.25592846,681.02,679.08,0.459225]
[1748528690130,0.25592846,681.02,679.09,0.459225]
[1748528690333,0.25592846,681.02,679.07,0.459225]
[1748528691237,0.25592846,681.02,679.18,0.459225]
[1748528691636,0.25592846,681.02,679.17,0.459225]
[1748528691835,0.25592846,681.02,679.18,0.459225]
[1748528692037,0.25592846,681.02,679.17,0.459225]
[1748528692431,0.25592846,681.02,679.06,0.459225]
[1748528693934,0.25592846,681.02,678.93,0.459225]
[1748528694234,0.25592846,681.02,678.76,0.459225]
[1748528694434,0.25592846,681.02,678.75,0.459225]
[1748528694633,0.25592846,681.02,678.76,0.459225]
[1748528694840,0.25592846,681.02,678.75,0.459225]
[1748528695535,0.25592846,681.02,678.76,0.459225]
[1748528695936,0.25592846,681.02,678.72,0.459225]
[1748528696333,0.25592846,681.02,678.7,0.459225]
[1748528697135,0.25592846,681.02,678.71,0.459225]
[1748528697335,0.25592846,681.02,678.72,0.459225]
[1748528697538,0.25592846,681.02,678.71,0.459225]
[1748528697940,0.25592846,681.02,678.73,0.459225]
[1748528698240,0.25592846,681.02,678.71,0.459225]
[1748528699141,0.25592846,681.02,678.72,0.459225]
[1748528699342,0.25592846,681.02,678.7,0.459225]
[1748528699843,0.25592846,681.02,678.66,0.5]
[1748528703346,0.25592846,681.02,678.72,0.459225]
[1748528703537,0.25592846,681.02,678.7,0.459225]
[1748528703743,0.25592846,681.02,678.71,0.459225]
[1748528704544,0.25592846,681.02,678.75,0.459225]
[1748528704843,0.25592846,681.02,678.78,0.459225]
[1748528705045,0.25592846,681.02,678.79,0.459225]
[1748528705641,0.25592846,681.02,678.77,0.459225]
[1748528706544,0.25592846,681.02,678.66,0.5]
[1748528709049,0.25592846,681.02,678.75,0.459225]
[1748528709349,0.29372457,680.91,678.69,0.459225]
[1748528709550,0.29372457,680.91,678.66,0.5]
[1748528709750,0.29372457,680.91,678.22,0.25584943]
[1748528709751,0.29372457,680.91,678.63,0.459225]
[1748528710347,0.29372457,680.91,678.58,0.459225]
[1748528710749,0.29372457,680.91,678.59,0.459225]
[1748528711047,0.29372457,680.91,678.56,0.459225]
[1748528711247,0.29372457,680.91,678.55,0.459225]
[1748528711448,0.29372457,680.91,678.6,0.459225]
[1748528712047,0.29372457,680.91,678.76,0.459225]
[1748528712852,0.29372457,680.91,678.78,0.459225]
[1748528713049,0.29372457,680.91,678.81,0.459225]
[1748528713247,0.29372457,680.91,678.83,0.459225]
[1748528714054,0.29372457,680.91,678.85,0.459225]
[1748528714254,0.29372457,680.91,678.81,0.459225]
[1748528714551,0.29372457,680.91,678.84,0.459225]
[1748528714750,0.29372457,680.91,678.83,0.459225]
[1748528715155,0.29372457,680.91,678.82,0.459225]
[1748528715750,0.29372457,680.91,678.81,0.459225]
[1748528715957,0.29372457,680.91,678.8,0.459225]
[1748528716654,0.29372457,680.91,678.81,0.459225]
[1748528717056,0.29372457,680.91,678.8,0.459225]
[1748528717255,0.29372457,680.91,678.61,0.312]
[1748528717256,0.29372457,680.91,678.79,0.459225]
[1748528717851,0.29372457,680.91,678.81,0.459225]
[1748528718053,0.29372457,680.91,679.02,0.459225]
[1748528718252,0.29372457,680.91,679.03,0.459225]
[1748528718762,0.29372457,680.91,679.07,0.459225]
[1748528719257,0.29372457,680.91,678.94,0.459225]
[1748528720057,0.29372457,680.91,678.93,0.459225]
[1748528720352,0.29372457,680.91,678.61,0.312]
[1748528720353,0.29372457,680.91,678.74,0.459225]
[1748528720553,0.29372457,680.91,678.74,0.75388864]
[1748528721258,0.29372457,680.91,678.74,0.29466364]
[1748528721854,0.29372457,680.91,678.75,0.459225]
[1748528722059,0.29372457,680.91,678.74,0.29466364]
[1748528727061,0.29372457,680.91,678.75,0.459225]
[1748528727464,0.29372457,680.91,678.76,0.459225]
[1748528727765,0.29372457,680.91,678.77,0.459225]
[1748528728167,0.29372457,680.91,678.8,0.459225]
[1748528728467,0.29372457,680.91,678.84,0.459225]
[1748528728868,0.29372457,680.91,678.88,0.459225]
[1748528729069,0.29372457,680.91,678.89,0.459225]
[1748528729264,0.29372457,680.91,678.81,0.29463325]
[1748528730569,0.29372457,680.91,678.86,0.459225]
[1748528730769,0.29372457,680.91,678.92,0.459225]
[1748528731368,0.29372457,680.91,678.87,0.29460721]
[1748528731369,0.29372457,680.91,678.94,0.459225]
[1748528732067,0.29372457,680.91,679.04,0.459225]
[1748528732266,0.29372457,680.91,679.11,0.459225]
[1748528732464,0.29372457,680.91,679.05,0.459225]
[1748528733269,0.29372457,680.91,679.06,0.459225]
[1748528737773,0.29372457,680.91,679.07,0.29452044]
[1748528742874,0.29372457,680.91,679.08,0.362]
[1748528743074,0.29372457,680.91,679.09,0.29451177]
[1748528756389,0.29372457,680.91,679.1,0.466]
[1748528756582,0.29372457,680.91,679.12,0.29449876]
[1748528772188,0.29372457,680.91,679.16,0.459225]
[1748528772594,0.29372457,680.91,679.15,0.459225]
[1748528773095,0.29372457,680.91,679.29,0.459225]
[1748528773699,0.29372457,680.91,679.12,0.29449876]
[1748528774289,0.29372457,680.91,679.12,0.75372376]
[1748528774496,0.29372457,680.91,679.13,0.459225]
[1748528774794,0.29372457,680.91,679.12,0.75372376]
[1748528774995,0.29372457,680.91,679.12,0.29449876]
[1748528775190,0.29372457,680.91,679.17,0.459225]
[1748528775393,0.29372457,680.91,679.13,0.459225]
[1748528775589,0.29372457,680.91,679.15,0.459225]
[1748528775794,0.29372457,680.91,679.16,0.29448141]
[1748528776488,0.29372457,680.91,679.25,0.459225]
[1748528776689,0.29372457,680.91,679.24,0.459225]
[1748528776897,0.29372457,680.91,679.24,0.75367173]
[1748528777194,0.29372457,680.91,679.24,0.29444673]
[1748528782192,0.29372457,680.91,679.25,0.39]
[1748528782589,0.29372457,680.91,679.25,0.849225]
[1748528782790,0.29372457,680.91,679.26,0.459225]
[1748528783194,0.29372457,680.91,679.27,0.459225]
[1748528783792,0.29372457,680.91,679.29,0.459225]
[1748528784196,0.29372457,680.91,679.28,0.459225]